Cogmind - Beta 17 @@@ ROGUE MODE // 2026.07.14 @ 15:15:40 Player: puppuppit Result: Destroyed by G-34 Mercenary with Small Laser Performance ------------- Evolutions (0) 0 Regions Visited (4) 800 Robots Destroyed (55) 275 Value Destroyed (1212) 1212 Prototype IDs (3) 60 Alien Tech Used (0) 0 Bonus (0) 0 TOTAL SCORE: 2347 Bonus ------- None Cogmind --------- Core Integrity 0/250 Matter 300/300 Energy 265/265 System Corruption 3% Temperature Cool (6) Movement Treading (240) Ox1 Location -9/Mines Parts ------- > --- POWER (1) -------- Improved Ion Engine (fused) > --- PROPULSION (2) --- Light Treads (fused) Light Treads > --- UTILITY (2) ------ High-capacity Storage Unit Improved Terrain Scanner > --- WEAPON (2) ------- Assault Rifle Heavy Assault Rifle > --- INVENTORY (20) --- Ion Engine Fission Core Light Fission Core Light Treads Light Treads Improved Heat Sink Medium Matter Pod (100) Large Matter Pod (150) Large Matter Pod (150) Targeting Computer Targeting Computer Light Armor Plating Light Armor Plating Hacking Suite Decoy Drone Bay Light Assault Rifle Light Assault Rifle Light Cannon Slug Cannon Peak State ------------ > --- POWER ------------ Improved Ion Engine > --- PROPULSION ------- Light Treads Light Treads > --- UTILITY ---------- High-capacity Storage Unit Improved Terrain Scanner > --- WEAPON ----------- Assault Rifle Heavy Assault Rifle > --- INVENTORY -------- Ion Engine Fission Core Light Fission Core Light Treads Light Treads Improved Heat Sink Large Matter Pod Large Matter Pod Targeting Computer Targeting Computer Light Armor Plating Light Armor Plating Hacking Suite Decoy Drone Bay Light Assault Rifle Light Cannon Slug Cannon Heavy Explosive Trap [Rating: 15] Favorites ----------- Power Improved Ion Engine Engine Improved Ion Engine Power Core Light Nuclear Core Propulsion Light Treads Treads Light Treads Utility Improved Terrain Scanner Device Improved Terrain Scanner Storage High-capacity Storage Unit Weapon Light Cannon Energy Gun Small Laser Ballistic Gun Heavy Assault Rifle Ballistic Cannon Light Cannon Special Weapon Mining Laser Build | -11 -10 -10 -10 -9 ------- Run | Yrd Mat Min Exi Min Slots Evolved . | . . . . . Power . | . . . . . Propulsion . | . . . . . Utility . | . . . . . Weapon . | . . . . . Parts Attached 29 | 8 12 9 . . Power 6 | 1 3 2 . . Engine 5 | 1 2 2 . . Core 1 | . 1 . . . Reactor . | . . . . . Propulsion 8 | 2 2 4 . . Treads 8 | 2 2 4 . . Leg . | . . . . . Wheel . | . . . . . Hover . | . . . . . Flight . | . . . . . Utility 5 | 2 2 1 . . Device 2 | 1 . 1 . . Storage 3 | 1 2 . . . Processor . | . . . . . Hackware . | . . . . . Protection . | . . . . . Artifact . | . . . . . Weapon 10 | 3 5 2 . . Energy Gun 3 | 2 1 . . . Energy Cannon . | . . . . . Ballistic Gun 3 | 1 1 1 . . Ballistic Cannon 3 | . 3 . . . Launcher . | . . . . . Special Weapon 1 | . . 1 . . Impact Weapon . | . . . . . Slashing Weapon . | . . . . . Piercing Weapon . | . . . . . Special Melee Weapon . | . . . . . Unidentified Prototypes . | . . . . . Parts Lost 7 | . 2 5 . . Power 1 | . . 1 . . Propulsion 3 | . 1 2 . . Utility . | . . . . . Weapon 3 | . 1 2 . . Highest Loss Streak 3 | . 1 3 . . To Critical Strikes . | . . . . . Average Backups 14 | . 11 17 17 18 Power 1 | . . 1 2 3 Propulsion 2 | . 2 2 2 2 Utility 7 | . 5 9 9 10 Weapon 3 | . 3 3 3 3 Tool/Special . | . . . . . Unused Backups 30 | . 3 9 1 17 Power 3 | . . . . 3 Propulsion 1 | . . . . 1 Utility 19 | . 2 6 1 10 Weapon 6 | . 1 2 . 3 Tool/Special 1 | . . 1 . . Average Slot Usage (%) 98 | . 99 99 91 100 Engine 9 | . 5 10 14 14 Core 4 | . 8 3 . . Treads 27 | . 27 28 28 28 Device 14 | . 14 14 14 14 Storage 14 | . 14 14 14 14 Energy Gun 1 | . 4 . . . Ballistic Gun 13 | . 9 15 19 28 Ballistic Cannon 10 | . 14 10 . . Special Weapon 1 | . . 2 . . Peak Build Rating 15 | 9 13 14 15 15 Average Rating 12 | 6 10 13 13 15 On Entrance 10 | . 9 13 14 15 Avg Prop Armor Cover (%) . | . . . . . Naked Turns . | . . . . . Heaviest Build 54 | 12 52 54 53 53 Greatest Support 40 | 40 40 40 40 40 Greatest Overweight (x) 1 | . 1 1 1 1 Average Overweight (x) . | . . 1 1 1 Largest Inventory Capacity 20 | 8 20 20 20 20 Average Capacity 17 | 7 13 20 20 20 Most Carried 20 | 1 20 20 20 20 Average Carried 15 | . 11 19 19 19 Final Capacity 20 | 8 20 20 20 20 Final Carried 20 | 1 20 18 20 20 Class Distribution -------------------- 58% | Mutant 41% | Scavenger-Mutant Dominant Class ---------------- Mutant | -10/Materials Scavenger-Mutant | -10/Mines Scavenger-Mutant | -10/Exiles Scavenger-Mutant | -9/Mines Resources | -11 -10 -10 -10 -9 ----------- Run | Yrd Mat Min Exi Min Matter Collected 2212 | 346 1066 671 129 . Remotely . | . . . . . Salvage Created 1596 | 148 983 465 . . Parts 108 | 12 68 28 . . Haulers Intercepted 1 | . 1 . . . Recyclers Shooed 5 | . 4 1 . . Parts Field Recycled . | . . . . . Retrieved Matter . | . . . . . Parts Self-Destructed . | . . . . . Prevented . | . . . . . Parts Restored . | . . . . . Kills | -11 -10 -10 -10 -9 ------- Run | Yrd Mat Min Exi Min Combat Hostiles Destroyed 35 | . 21 14 . . Guns 12 | . 9 3 . . Cannons 20 | . 9 11 . . AOE 3 | . 3 . . . Classes Destroyed 11 | 3 6 2 . . Worker 6 | 2 3 1 . . Builder 1 | . 1 . . . Tunneler 4 | 3 . 1 . . Hauler 1 | . 1 . . . Recycler 6 | 1 3 2 . . Operator 2 | . 2 . . . Watcher 3 | . 3 . . . Swarmer 6 | . 3 3 . . Grunt 24 | . 18 6 . . Sentry 2 | . . 2 . . Assembled 3 | . . 3 . . Best Kill Streak 5 | 4 5 4 . . Combat Bots Only 5 | . 5 3 . . Max Kills in Single Turn 3 | 1 3 2 . . Gunslinging . | . . . . . Exploded 3 | . 3 . . . Melee . | . . . . . Uniques/NPCs Destroyed . | . . . . . Combat | -11 -10 -10 -10 -9 -------- Run | Yrd Mat Min Exi Min Hostile Shots Fired 199 | . 79 111 . 9 Missed 57 | . 24 31 . 2 Hits 142 | . 55 80 . 7 Projectile 142 | . 55 80 . 7 Critical Strikes 1 | . . 1 . . Damage Taken 1849 | . 762 971 . 116 Core 256 | . 104 126 . 26 Absorbed by Shields . | . . . . . Regen/Repaired (Parts) 172 | . 172 . . . Core Remaining (%) 100 | 100 . . . . Volleys Fired 209 | 16 134 59 . . Largest 2 | 2 2 2 . . Hottest 100 | 80 60 100 . . Shots Fired 414 | 32 268 113 1 . Gun 238 | 32 168 37 1 . Cannon 170 | . 100 70 . . Launcher . | . . . . . Special 6 | . . 6 . . Kinetic 332 | 11 213 107 1 . Thermal 53 | 5 42 6 . . Explosive . | . . . . . Electromagnetic 29 | 16 13 . . . Robot Hit Streak 22 | 3 22 9 . . Robot Miss Streak 6 | 3 6 5 . . Penetration Max . | . . . . . Secondary Targets . | . . . . . Shots Hit Robots 247 | 17 168 62 . . Core Hits 86 | 8 52 26 . . Critical Kills . | . . . . . Critical Parts Destroyed 1 | . 1 . . . Critical Strikes 4 | . 3 1 . . Destroy 1 | . 1 . . . Blast 3 | . 2 1 . . Melee Attacks . | . . . . . Impact . | . . . . . Slashing . | . . . . . Piercing . | . . . . . Sneak Attacks . | . . . . . Combat Hostiles . | . . . . . Follow-up Attacks . | . . . . . Damage Inflicted 3591 | 229 2194 1168 . . Guns 1584 | 229 1069 286 . . Cannons 1707 | . 902 805 . . Explosions 291 | . 214 77 . . Melee . | . . . . . Ramming 9 | . 9 . . . Kinetic 2714 | 16 1607 1091 . . Thermal 467 | 23 367 77 . . Explosive 116 | . 116 . . . Electromagnetic 285 | 190 95 . . . Impact . | . . . . . Slashing . | . . . . . Piercing . | . . . . . Highest Corruption 3 | . 3 3 3 3 Average Corruption 2 | . 2 3 3 3 Corruption Purged . | . . . . . Corruption Blocked . | . . . . . Effects 91 | . 12 64 14 1 Message Errors 20 | . 3 12 5 . Matter Fused 28 | . 3 23 2 . Heat Flow Errors 11 | . 1 8 2 . Energy Discharges 16 | . . 14 2 . Parts Fused 2 | . . 1 1 . Data Loss (minor) 2 | . 1 1 . . Data Loss (major) 3 | . . 2 1 . Misfires 6 | . 3 2 1 . Alerts 2 | . . 1 . 1 Weapon Failures 1 | . 1 . . . Overload Shots . | . . . . . Overflow Damage 20 | . 20 . . . Projectiles 2 | . 2 . . . Explosions 18 | . 18 . . . Melee . | . . . . . Knockbacks 24 | . 14 10 . . Impact . | . . . . . Kinetic 22 | . 13 9 . . Secondary 2 | . 1 1 . . Self-Inflicted Damage 133 | . 133 . . . Shots 2 | . 2 . . . Rammed 1 | . 1 . . . Targets Rammed 1 | . 1 . . . Kicked . | . . . . . Crushed . | . . . . . Highest Temperature 255 | 72 87 255 136 . Average Temperature 35 | 25 21 58 62 . Received Heat Transfer 645 | . 318 306 . 21 Siege Activations . | . . . . . Martial Activations . | . . . . . Shielding Activations . | . . . . . Robots Disrupted . | . . . . . Combat Hostiles . | . . . . . Robots Corrupted . | . . . . . Combat Hostiles . | . . . . . Parts Fried 1 | 1 . . . . Impact Corruptions . | . . . . . Robots Melted . | . . . . . Combat Hostiles . | . . . . . Parts Melted . | . . . . . Heat Transferred 950 | 50 750 150 . . Parts Sabotaged . | . . . . . Parts Stolen . | . . . . . Parts Stripped . | . . . . . Power Chain Reactions 1 | . 1 . . . Alert | -11 -10 -10 -10 -9 ------- Run | Yrd Mat Min Exi Min Maximum Alert Level . | . . . . . Low Security (%) 100 | 100 100 100 . 100 Level 1 . | . . . . . Level 2 . | . . . . . Level 3 . | . . . . . Level 4 . | . . . . . Level 5 . | . . . . . High Security . | . . . . . Max Security . | . . . . . Peak Influence 194 | 10 181 194 . 10 Initial 48 | . . 48 . . Average 41 | 1 67 25 . . Influence Increases 1082 | 30 660 382 . 10 Destroy 0b10 Robot/C 640 | . 420 220 . . Destroy 0b10 Robot/NC 115 | 30 65 20 . . Destroy Leader 108 | . 88 20 . . Trap Triggered on 0b10 40 | . . 30 . 10 Successful Hack 15 | . 15 . . . Disable Machine 75 | . 30 45 . . Destroy Structure 44 | . 27 17 . . Lose Combat Pursuer 45 | . 15 30 . . Influence Decreases 1082 | 30 536 506 . 10 Entered New Map 76 | . . 76 . . Time Decay 959 | 30 516 403 . 10 Lost Part 47 | . 20 27 . . Squads Dispatched 5 | . 5 . . . Investigation 4 | . 4 . . . Extermination . | . . . . . Reinforcement 1 | . 1 . . . Assault . | . . . . . Garrison . | . . . . . Intercept . | . . . . . Searches Triggered . | . . . . . Construction Impeded . | . . . . . Haulers Reinforced . | . . . . . Active Scanning Responses . | . . . . . Cargo Convoy Interrupts . | . . . . . Stealth | -11 -10 -10 -10 -9 --------- Run | Yrd Mat Min Exi Min Distress Signals 2 | . 2 . . . Communications Jammed . | . . . . . Distress Signals . | . . . . . Times Spotted 70 | . 42 23 . 5 Peak Tracking Total 4 | . 4 3 . 3 Tactical Retreats 3 | . 1 2 . . Traps | -11 -10 -10 -10 -9 ------- Run | Yrd Mat Min Exi Min Traps Triggered 4 | . 4 . . . Indirectly . | . . . . . Trap Hack Attempts . | . . . . . Triggered . | . . . . . Disarmed . | . . . . . Reprogrammed . | . . . . . Reused 4 | . . 3 . 1 Traps Extracted . | . . . . . Installed 4 | . . 3 . 1 Triggered 4 | . . 3 . 1 Most Traps Carried 4 | . . 4 1 1 Machines | -11 -10 -10 -10 -9 ---------- Run | Yrd Mat Min Exi Min Machines Disabled 5 | . 2 3 . . Max in Single Turn 3 | . 1 3 . . Machines Repaired . | . . . . . Machines Dismantled . | . . . . . Machines Sabotaged . | . . . . . Overloaded Fab Kills . | . . . . . Hacking | -11 -10 -10 -10 -9 --------- Run | Yrd Mat Min Exi Min Machines Accessed 11 | . 9 1 1 . Terminals 6 | . 6 . . . Fabricators . | . . . . . Repair Stations 1 | . 1 . . . Recycling Units 2 | . 2 . . . Scanalyzers . | . . . . . Garrison Access . | . . . . . Total Hacks 34 | . 32 1 1 . Successful 18 | . 16 1 1 . Failed 15 | . 15 . . . Catastrophic 1 | . 1 . . . Database Lockouts 1 | . 1 . . . Manual 19 | . 19 . . . Terminals 19 | . 19 . . . Fabricators . | . . . . . Repair Stations 9 | . 9 . . . Recycling Units 4 | . 4 . . . Scanalyzers . | . . . . . Garrison Access . | . . . . . Terminal Hacks 8 | . 6 1 1 . Record 1 | . . . 1 . Robot Analysis 3 | . 3 . . . Prototype ID Bank 2 | . 2 . . . Open Door 1 | . . 1 . . Dispatch Records 1 | . 1 . . . Fabricator Hacks . | . . . . . Repair Station Hacks 5 | . 5 . . . Scan Component 3 | . 3 . . . Repair 2 | . 2 . . . Recycling Unit Hacks 2 | . 2 . . . Retrieve Components 2 | . 2 . . . Scanalyzer . | . . . . . Garrison Access Hacks . | . . . . . Unauthorized Hacks 3 | . 3 . . . Terminals 2 | . 2 . . . Assimilate 1 | . 1 . . . Operators 1 | . 1 . . . Fabricators . | . . . . . Repair Stations . | . . . . . Recycling Units 1 | . 1 . . . Recyclers 1 | . 1 . . . Scanalyzers . | . . . . . Garrison Access . | . . . . . Data Cores Recovered . | . . . . . Used . | . . . . . Hacking Detections 8 | . 8 . . . Full Trace Events 2 | . 2 . . . Feedback Events 1 | . 1 . . . Corruption 1 | . 1 . . . Feedback Blocked . | . . . . . Robot Schematics Acquired . | . . . . . Robots Built . | . . . . . Authchips . | . . . . . Time . | . . . . . Total Robot Build Rating . | . . . . . Part Schematics Acquired . | . . . . . Parts Built . | . . . . . Authchips . | . . . . . Time . | . . . . . Total Part Build Rating . | . . . . . Part Studies Acquired . | . . . . . Parts Repaired 2 | . 2 . . . Time 52 | . 52 . . . Parts Recycled . | . . . . . Recycled Matter . | . . . . . Retrieved Matter . | . . . . . Retrieved Components 13 | . 13 . . . Parts Scanalyzed . | . . . . . Part Schematics Acquired . | . . . . . Parts Damaged . | . . . . . Bothacking | -11 -10 -10 -10 -9 ------------ Run | Yrd Mat Min Exi Min Used RIF Installer . | . . . . . Robots Hacked . | . . . . . Non-combat . | . . . . . Combat . | . . . . . Robot Hacks Applied . | . . . . . Relay Couplers Released . | . . . . . Fabnet Peak Effective % . | . . . . . Robots Rewired . | . . . . . Allies Hacked . | . . . . . Hacks Repelled . | . . . . . Allies | -11 -10 -10 -10 -9 -------- Run | Yrd Mat Min Exi Min Total Allies . | . . . . . Largest Group . | . . . . . Highest-Rated Group . | . . . . . Highest-Rated Ally . | . . . . . Total Orders . | . . . . . Ally Attacks . | . . . . . Total Damage . | . . . . . Kills . | . . . . . Allies Corrupted . | . . . . . Allies Melted . | . . . . . Intel | -11 -10 -10 -10 -9 ------- Run | Yrd Mat Min Exi Min Active Infowar (turns) 6109 | 100 2342 2882 686 99 Terrain 6109 | 100 2342 2882 686 99 Robot Analysis Total 3 | . 3 . . . Derelict Logs Recovered 2 | . . 1 . 1 Drone Launches . | . . . . . Drone Recoveries . | . . . . . Exploration | -11 -10 -10 -10 -9 ------------- Run | Yrd Mat Min Exi Min Turns Passed 6198 | 189 2342 2882 686 99 Spaces Moved 2479 | 84 1015 1058 282 40 Core 3 | 3 . . . . Treads 2476 | 81 1015 1058 282 40 Legs . | . . . . . Wheels . | . . . . . Hover . | . . . . . Flight . | . . . . . Fastest Speed 50 | 50 160 240 240 240 Average Speed 212 | 156 179 240 240 240 Slowest Speed 240 | 160 240 240 240 240 Overloaded Moves . | . . . . . Propulsion Burnouts . | . . . . . Robots Hopped . | . . . . . Potential Cave-ins . | . . . . . Cave-ins Triggered . | . . . . . Exploration Rate (%) 54 | 4 96 99 56 17 Regions Visited 4 Branch Regions 3 Pre-discovered Areas . | . . . . . Known Exits Taken . | . . . . . Unknown Exits Taken 4 | 1 1 1 1 . Scrap Searched 3 | . . 1 . 2 Spaces Dug . | . . . . . Terrain Destroyed 39 | . 20 19 . . Melee . | . . . . . Projectile 1 | . . 1 . . AOE 38 | . 20 18 . . Terrain Rammed . | . . . . . Walls Destroyed . | . . . . . Machines Disabled . | . . . . . Actions | -11 -10 -10 -10 -9 --------- Run | Yrd Mat Min Exi Min Total 3022 | 108 1290 1287 294 43 Wait 209 | . 85 124 . . Move 2475 | 83 1014 1057 281 40 Hop . | . . . . . Pick Up 48 | 1 28 14 4 1 Fast Attach 14 | 7 5 . 2 . Attach 8 | . 2 6 . . Detach 2 | . . . 2 . Swap 15 | 1 6 7 1 . Drop 37 | . 15 17 4 1 Fire 209 | 16 134 59 . . Melee . | . . . . . Ram . | . . . . . Kick . | . . . . . Crush 1 | . 1 . . . Escape Stasis . | . . . . . Rewire . | . . . . . Trap 4 | . . 3 . 1 Miscellaneous . | . . . . . Route ------- -11/Scrapyard -10/Materials (discovered 6 exits: [*Mat x3] / *Min x2 / [*Sub]) -10/Mines (discovered 4 exits: [*Mat x2] / *Exi / [*Sub]) -10/Exiles (discovered 2 exits: [*Min x2]) -9/Mines History --------- Turn | Location | Event 54 | -11/Scrapyard | Discovered new exit (range 16) 190 | -11/Scrapyard | Entered Materials 194 | -10/Materials | Discovered new exit (range 11) 305 | -10/Materials | Build established: Mutant 449 | -10/Materials | Discovered new exit (range 12) 916 | -10/Materials | Discovered new exit (range 9) 1135 | -10/Materials | Discovered new exit (range 14) 1597 | -10/Materials | Discovered new exit (range 8) 1676 | -10/Materials | Central database locked down 1883 | -10/Materials | Discovered new exit (range 10) 1968 | -10/Materials | Repaired Lgt. Cannon 1995 | -10/Materials | Repaired Lgt. Treads 2532 | -10/Materials | Entered Mines 2543 | -10/Mines | Met a Derelict bent on vengeance 2627 | -10/Mines | Core integrity fell below 50% 2818 | -10/Mines | Deemed a non-threat by the Exiles lab entrance 2818 | -10/Mines | Discovered new exit (range 5) 2878 | -10/Mines | Discovered new exit (range 5) 3009 | -10/Mines | Excavation squad dispatched 3009 | -10/Mines | A large section of the Mines collapsed 3565 | -10/Mines | Core integrity fell below 20% 3612 | -10/Mines | Lost 3 parts (1n2w) 3868 | -10/Mines | Build established: Scavenger-Mutant 4042 | -10/Mines | Found a hidden stash of uninstalled traps 4191 | -10/Mines | Found the Drone Emporium 4205 | -10/Mines | Found Prototype Device 4453 | -10/Mines | A weapon hastily lodged in a ceiling crevice suddenly fell to the ground 4464 | -10/Mines | Discovered new exit (range 8) 4487 | -10/Mines | Discovered new exit (range 8) 4736 | -10/Mines | Learned Materials terminal intel 5414 | -10/Mines | Entered Exiles 5414 | -10/Exiles | Found Exiles lab abandoned 5446 | -10/Exiles | Discovered new exit (range 15) 6074 | -10/Exiles | Discovered new exit (range 14) 6100 | -10/Exiles | Entered Mines 6173 | -9/Mines | Learned Materials emergency access door positions 6199 | -9/Mines | Destroyed by G-34 Mercenary with Small Laser Last Messages --------------- 06110_ Searching scrap... 06110_ Found Visual Processing Unit. 06110_ Found VTOL Module. 06110_ Found Beam Rifle. 06110_ Found 47 Matter. 06129_ Dropped Heavy Explosive Trap. 06130_ System corrupted: IFF burst signal emitted. 06130_ Installed Heavy Explosive Trap. 06134_ S-10 Pest triggered Heavy Explosive Trap. 06134_ An explosion rips through the floor. 06134_ S-10 Pest destroyed. 06138_ Acquired Lgt. Assault Rifle. 06156_ Searching scrap... 06156_ Found Wheel. 06156_ Found 69 Matter. 06158_ R-06 Scavenger collects Lgt. Assault Rifle. 06165_ U-05 Engineer lays Concrete. 06173_ Acquired derelict log, extracted data. Data stored: Materials emergency access points. 06173_ U-05 Engineer lays Concrete. Map ----- +----------------------------------------------------+ | ?????????## #????????????? | | ?????????# ##????????????? | | ????# #### ##?????????????? | | ????# ##??? ????? ???? | | ????#######=[ ##????????????? | | ??????????#% #????????????? | | ????????### ! #?? ?????????? | | ????????# #????? ??????? | | ????????## ##???"???????# | | ????????# #?? """"?????# | | ????????# % ### """" #??? | | ????????# %% #??? | | #???????## ## #??? | | ?????????# # ## #??? | | ????????###% ## #???#??# | | ????#????##= ## #????#?? | | ?????????###### ## #??????? | | ??????????????# ## #??????? | | ??????????????# ## ######?? | | ???????##????## ## #?? | | ?????????#????# #??# #?? | | ??????????????# #??# #?? | | ?#????????????# ##?# #?? | | ?????????????#### ### #?? | | ????????????????## #?? | | ?????????????????# ###@#?? | | ????#????????????# # #? | | ????##?????????## ## #? | | ?????????#?#????# ## g #? | | ????????????????# ## g#? | | ????????????????## ## #? | | ?????????????????## ## #? | | ??????????????????# #######? | | ?????????????????? ??????? | | ?????????????????? ??????? | | ?????????????????? ??????? | | ????????????????? ??????? | | ????????????????? ??????? | | ????????????????? ??????? | | ?????????????????? ???????? | | ????????????????????????????? | | ????????????????????????????? | | ????????????????????????????? | | ????????????????????????????? | | ????????????????????????????? | | ????????????????????????????? | | ????????????????????????????? | | ????????????????????????????? | | ????????????????????????????? | | ????????????????????????????? | +----------------------------------------------------+ Best States ------------- Heat Dissipation 25 Energy Generation 14 Energy Capacity 265 Matter Stores 300 Matter Capacity 300 Sight Range 16 Terrain Scan Range 16 Terrain Scan Density 10 Evasion (%) 40 Recoil Reduction 2 Item Schematics ----------------- None Robot Schematics ------------------ None Fabricated ------------ Nothing Repaired ---------- Lgt. Cannon | 57% | -10/Materials Lgt. Treads | 13% | -10/Materials Studied --------- None Alien Tech Used ----------------- None Achievements -------------- None Challenges ------------ None Game ------ Seed ChipSlugStrikerail Manual? 0 Play Time 00:17:28 Cumulative 713.2 hours Start 2026.07.14 @ 14:58:24 End 2026.07.14 @ 15:15:40 Sessions 1 Manual Loads 0 Difficulty Rogue Special Mode None Game No. 351 Rogue 351 Adventurer 0 Explorer 0 Win Type - Total 7 Types 3/0/2/1/0/0/0/0/0/1 Lore% 87 Gallery% 76 Achievement% 59 Wizard Run 0 Options --------- Layout 2 ASCII 0 Keyboard 1 Movement Vi Keybinds 0 Fullscreen 1 Font 16/Proggy Map View 55x47 Zoom Use 0% Tactical HUD 1 Map Filters NONE Filters NONE Steam 0 RUN: 20d7f4af-ee21-49b4-a292-ef23ab12a26b